[Event "Dutch Open 2022"]
[Site "Dieren"]
[Date "2022.08.03"]
[Round "8.3"]
[White "Burdalev, Kirill"]
[Black "De Winter, Arthur"]
[Result "0-1"]
[ECO "E90"]
[WhiteElo "2381"]
[BlackElo "2150"]
[Annotator "TA"]
[PlyCount "136"]
[EventDate "2022.07.14"]
[EventType "swiss"]
[EventCountry "NED"]
[SourceTitle "playchess.com"]
[Source "ChessBase"]
[SourceQuality "1"]
[TimeControl "40/5400+30:1800+30"]

{[%evp 22,136,45,51,53,61,42,57,59,-15,-18,-20,-18,-25,-25,-18,-27,-14,0,0,-15,-55,-67,-84,-59,-65,0,-73,-61,-96,-71,-119,-117,-133,-147,-201,-187,-200,-197,-278,-256,-208,-166,-192,-159,-166,-127,-128,-21,-27,-33,-57,-58,-66,-68,-67,-22,-22,-20,-19,-27,-25,-33,-53,-5,-76,-93,-111,-101,-98,-96,-95,-91,-123,-123,-123,-123,-201,-195,-244,-238,-224,-226,-264,-236,-329,-327,-327,-324,-420,-416,-444,-323,-391,-369,-398,-394,-652,-651,-622,-480,-429,-400,-516,-423,-394,-385,-29980,-29981,-29986,-29987,-29988,-29989,-29990,-29991,-29991,-29992]} 1. d4 {[%emt 0:00:01]} Nf6 {[%emt 0:00:04]} 2. c4 {[%emt 0:00:09]} g6 {[%emt 0:00:05]} 3. Nc3 {[%emt 0:00:04]} Bg7 {[%emt 0:00:03]} 4. e4 {[%emt 0:00:12]} d6 {[%emt 0:00:04]} 5. Nf3 {[%emt 0:00:13]} O-O {[%emt 0:00:08]} 6. Be3 {[%emt 0:00:02]} e5 {[%emt 0:03:41]} 7. dxe5 {[%emt 0:00:06]} dxe5 {[%emt 0:00:06]} 8. Qxd8 {[%emt 0:00:05]} Rxd8 {[%emt 0:00:05]} 9. Nd5 {[%emt 0:00:04]} Nxd5 {[%emt 0:00:59]} 10. cxd5 {[%emt 0:00:12]} c6 {[%emt 0:00:21]} 11. Bc4 {[%emt 0:00:03]} b5 {[%emt 0:02:30]} 12. Bb3 {[%emt 0:00:25]} Bb7 {[%emt 0:02:54][%cal Rc6d5] E90: King's Indian: Classical: Early deviations and 6 h3.} 13. Rc1 {[%emt 0:00:13]} a5 {[%emt 0:07:55][%cal Rc6d5]} 14. Ng5 {[%emt 0:07:52][%cal Og5f7] Nxf7! is the strong threat.} Rd7 {[%emt 0:00:24] White is slightly better.} 15. O-O {[%emt 0:32:20]} (15. a4 $1 $14) 15... a4 $1 $11 {[%emt 0:07:50]} 16. dxc6 {[%emt 0:00:53]} Nxc6 {[%emt 0:00:14]} 17. Bd5 {[%emt 0:00:14]} Na5 {[%emt 0:00:07] [#]} 18. Bxf7+ $146 {[%emt 0:12:00]} ({Predecessor:} 18. Rc5 Bxd5 19. exd5 Rb8 20. h4 Bf6 21. Rd1 Be7 22. Rcc1 Nc4 23. b3 axb3 24. axb3 {½-½ (51) Jefferson,Z (2017)-Taylor,S (2354) ICCF email 2010}) 18... Rxf7 {[%emt 0:00:11]} 19. Nxf7 {[%emt 0:00:05]} Kxf7 {[%emt 0:00:08]} 20. Rc7+ {[%emt 0:00:04]} Kg8 {[%emt 0:00:29]} 21. Rd1 {[%emt 0:07:37]} Bxe4 {[%emt 0:02:41]} 22. Rdd7 {[%emt 0:02:13]} Bf8 {[%emt 0:01:05]} 23. Rxh7 {[%emt 0:07:21]} Ra6 {[%emt 0:15:06]} ({Black should play} 23... Nc4 $15 24. Bg5 Ra6) 24. Bg5 {[%emt 0:09:54]} (24. Bc5 $11 Bxc5 25. Rhg7+ Kh8 26. Rh7+ Kg8 27. Rhg7+ Kh8 28. Rh7+ Kg8) 24... Nc4 $17 {[%emt 0:10:54]} 25. Rh4 {[%emt 0:15:53]} Bd5 {[%emt 0:05:23]} 26. Rc8 {[%emt 0:03:53]} (26. Be7 $142 Bxe7 27. Rxe7) 26... Ra8 {[%emt 0:04:46]} ({But not} 26... Nxb2 27. Bh6 Rf6 28. Rb4 $16) 27. Rxa8 {[%emt 0:01:08]} Bxa8 {[%emt 0:00:04]} 28. Bc1 {[%emt 0:00:26]} (28. b3 $17 axb3 29. axb3) 28... Bd5 $19 {[%emt 0:01:51]} 29. Rh3 {[%emt 0:00:23]} e4 {[%emt 0:03:01] Against Rd3} 30. b3 {[%emt 0:00:39]} (30. Rg3 $142 Kf7 31. Rg5) 30... Ne5 {[%emt 0:02:20] Strongly threatening ...Nd3.} 31. Rg3 {[%emt 0:00:31]} Bf7 {[%emt 0:06:22]} 32. Rc3 {[%emt 0:00:36]} Nd3 {[%emt 0:03:05] Threatens to win with ...b4.} 33. Be3 {[%emt 0:00:11]} Be6 {[%emt 0:01:17] Hoping for ...axb3.} 34. Rc6 {[%emt 0:00:20] [#]} Kf7 {[%emt 0:01:17]} ({Black should try} 34... axb3 $1 $17 35. axb3 Bxb3 36. Rxg6+ Kf7) 35. Rc7+ $11 {[%emt 0:00:24]} Ke8 {[%emt 0:00:53]} 36. Rb7 {[%emt 0:00:42]} axb3 {[%emt 0:01:23]} 37. axb3 {[%emt 0:00:04]} b4 {[%emt 0:01:44]} 38. Rb8+ {[%emt 0:00:04]} Kf7 {[%emt 0:00:07]} (38... Ke7 $5 {[%cal Re6b3]} 39. Bg5+ Kf7 40. Rb7+ Ke8 41. Rb8+ Kf7 42. Rb7+ Kg8 $17) 39. Rb7+ {[%emt 0:00:11]} Kg8 {[%emt 0:02:18]} 40. Rb8 {[%emt 0:00:12] Black must now prevent Bh6.} Kg7 {[%emt 0:01:38] Prevents Bh6+.} (40... Bxb3 $2 41. Bh6 $18) 41. Rb7+ $1 {[%emt 0:31:37]} Bf7 {[%emt 0:31:28]} ({Much worse is} 41... Kg8 $6 42. Rb8 Kf7 43. Rb7+ Kg8 $15) 42. h4 {[%emt 0:00:00]} Bd6 {[%emt 0:00:00]} (42... Kf6 $15 {is superior.} 43. Bg5+ Ke6) 43. g4 {[%emt 0:00:00]} (43. Rd7 $11 {remains equal.} Bc5 44. Bxc5 Nxc5 45. Rc7) 43... Kf8 $17 {[%emt 0:00:00] White is on the road to losing.} 44. Rb6 {[%emt 0:00:00]} Be5 {[%emt 0:00:00]} 45. Bd2 {[%emt 0:01:45]} Bd4 {[%emt 0:00:00] This bishop pair is nice.} ({Don't play} 45... Bxb3 $6 46. Bxb4+ Nxb4 47. Rxb4 $11) 46. Bxb4+ {[%emt 0:00:59]} Kg7 {[%emt 0:00:00] Black is more active.} 47. Rb7 {[%emt 0:00:37]} Bxf2+ {[%emt 0:00:00]} 48. Kf1 {[%emt 0:00:12]} Bxh4 {[%emt 0:00:00]} 49. Bc3+ {[%emt 0:01:03]} (49. Ba3 $17) 49... Kf8 $19 {[%emt 0:00:00]} 50. Rb8+ {[%emt 0:00:16]} (50. b4 $142) 50... Ke7 {[%emt 0:00:00]} 51. Rb7+ {[%emt 0:00:29]} Ke6 {[%emt 0:00:00]} 52. b4 {[%emt 0:00:54]} Be8 {[%emt 0:00:00]} 53. Bd4 {[%emt 0:00:20]} Kd5 {[%emt 0:00:00]} 54. Be3 {[%emt 0:00:10]} Kc4 {[%emt 0:00:11] Prevents b5.} 55. Bd2 {[%emt 0:00:20]} Ne5 {[%emt 0:01:06] And now ...Kd3 would win.} 56. g5 {[%emt 0:01:00]} Bd7 {[%emt 0:08:52] aiming for ...Kd3.} 57. Bf4 {[%emt 0:00:26]} Bh3+ {[%emt 0:00:58]} 58. Ke2 {[%emt 0:00:20]} Nd3 {[%emt 0:00:10]} 59. Bd2 {[%emt 0:00:15]} (59. Rc7+ Kb5 60. Rb7+ Ka6 61. Rf7) 59... Bg4+ {[%emt 0:01:04]} 60. Kf1 {[%emt 0:00:05]} Bg3 {[%emt 0:01:05]} 61. b5 {[%emt 0:00:43]} Nc5 {[%emt 0:02:04]} 62. Rb6 {[%emt 0:00:53]} Nb3 {[%emt 0:00:45]} 63. Be3 {[%emt 0:01:00]} Kd3 {[%emt 0:00:15]} 64. Rc6 $2 {[%emt 0:00:24] [#]} (64. Kg2 $19 Be5 65. Bg1) 64... Kxe3 {[%emt 0:01:07] Black mates.} 65. Rc3+ {[%emt 0:00:09]} Kf4 {[%emt 0:00:11]} 66. Rxb3 {[%emt 0:00:07]} e3 {[%emt 0:00:03]} 67. Rb4+ {[%emt 0:00:46]} Kf3 {[%emt 0:00:08]} 68. Rb3 {[%emt 0:00:10]} Bf2 {[%emt 0:00:03] Weighted Error Value: White=0.32/Black=0.18 (very precise)} 0-1

[Event "Dutch Open 2022"]
[Site "Dieren"]
[Date "2022.08.03"]
[Round "8.4"]
[White "Grutter, Tim"]
[Black "Gilmanov, Mansur"]
[Result "1/2-1/2"]
[ECO "B01"]
[WhiteElo "2246"]
[BlackElo "2377"]
[Annotator "TA"]
[PlyCount "55"]
[EventDate "2022.07.14"]
[EventType "swiss"]
[EventCountry "NED"]
[SourceTitle "playchess.com"]
[Source "ChessBase"]
[SourceQuality "1"]
[TimeControl "40/5400+30:1800+30"]

{[%evp 9,55,31,33,11,35,55,38,36,56,21,37,12,19,9,5,0,6,-32,-37,-34,-41,-27,0,0,0,0,0,0,0,0,0,0,0,-2,0,0,0,0,0,0,0,-10,0,0,-10,-18,0,0]} 1. e4 {[%emt 0:00:03]} d5 {[%emt 0:00:03]} 2. exd5 {[%emt 0:00:06]} Qxd5 {[%emt 0:00:05]} 3. Nc3 {[%emt 0:00:07]} Qa5 {[%emt 0:00:03]} 4. d4 {[%emt 0:00:45]} Nf6 {[%emt 0:00:11]} 5. Nf3 {[%emt 0:01:37]} c6 {[%emt 0:00:12]} 6. g3 {[%emt 0:06:17] B01: Scandinavian Defence.} g6 {[%emt 0:00:39]} 7. Bg2 {[%emt 0:00:14]} Bg7 {[%emt 0:00:22]} 8. O-O {[%emt 0:00:29] White is slightly better.} O-O {[%emt 0:03:56] [#]} 9. Qe2 $146 {[%emt 0:01:49]} ({Predecessor:} 9. Bd2 Qc7 10. a3 a6 {½-½ (10) Carnic,D (2117)-Djukic,M (1979) Belgrade 2010}) 9... Re8 {[%emt 0:03:44]} 10. Ne5 {[%emt 0:04:54]} Be6 {[%emt 0:17:06]} 11. Rd1 {[%emt 0:06:04]} Nbd7 {[%emt 0:12:26]} 12. Nxd7 {[%emt 0:07:04]} Bxd7 {[%emt 0:01:06]} 13. d5 {[%emt 0:01:30]} Bg4 {[%emt 0:07:37]} 14. Bf3 {[%emt 0:05:43]} Bxf3 {[%emt 0:11:31]} (14... h5 {seems wilder.} 15. Bxg4 hxg4 16. dxc6 bxc6 17. Be3 Qf5) 15. Qxf3 {[%emt 0:00:16]} Nxd5 {[%emt 0:08:21]} (15... Rad8 {feels hotter.} 16. dxc6 Rxd1+ 17. Nxd1 bxc6 18. Ne3 Nd5) 16. Nxd5 {[%emt 0:00:28] The position is equal.} cxd5 {[%emt 0:00:09]} 17. Qxd5 {[%emt 0:00:54]} Qxd5 {[%emt 0:05:25]} 18. Rxd5 {[%emt 0:00:05]} Rad8 {[%emt 0:06:00]} 19. Rxd8 {[%emt 0:00:20]} Rxd8 $11 {[%emt 0:00:04][%mdl 4096] Endgame KRB-KRB} 20. Be3 {[%emt 0:00:39]} a6 {[%emt 0:04:47]} 21. c3 {[%emt 0:03:58]} f5 {[%emt 0:01:49]} 22. f4 {[%emt 0:02:37]} Kf7 {[%emt 0:02:03]} 23. Kf2 {[%emt 0:00:59]} e5 {[%emt 0:02:18]} 24. fxe5 {[%emt 0:01:21]} Bxe5 {[%emt 0:00:14]} 25. Rc1 {[%emt 0:01:38]} h5 {[%emt 0:05:07][%cal Bh7h5,Bh5h4][%mdl 32]} 26. c4 {[%emt 0:08:46]} h4 {[%emt 0:00:29]} 27. c5 {[%emt 0:02:06]} Rd3 {[%emt 0:03:46]} 28. Ke2 {[%emt 0:05:37] Weighted Error Value: White=0.08 (flawless) /Black=0.05 (flawless)} 1/2-1/2

[Event "Dutch Open 2022"]
[Site "Dieren"]
[Date "2022.08.03"]
[Round "8.5"]
[White "Maatman, Nick"]
[Black "Baselmans, Sam"]
[Result "1/2-1/2"]
[ECO "D31"]
[WhiteElo "2368"]
[BlackElo "2182"]
[Annotator "TA"]
[PlyCount "88"]
[EventDate "2022.07.14"]
[EventType "swiss"]
[EventCountry "NED"]
[SourceTitle "playchess.com"]
[Source "ChessBase"]
[SourceQuality "1"]
[TimeControl "40/5400+30:1800+30"]

{[%evp 9,88,25,42,48,54,42,47,14,15,11,12,16,9,12,9,14,20,9,29,37,22,33,29,31,32,27,32,32,22,33,68,48,49,50,81,77,79,79,94,97,105,91,93,102,101,81,74,81,77,76,97,87,104,104,89,92,100,77,89,87,393,80,125,101,168,34,45,0,0,0,0,0,0,0,0,0,0,0,0,-8,7]} 1. d4 {[%emt 0:05:57]} d5 {[%emt 0:00:13]} 2. c4 {[%emt 0:00:04]} e6 {[%emt 0:00:05]} 3. Nc3 {[%emt 0:00:03]} a6 {[%emt 0:00:07]} 4. cxd5 {[%emt 0:00:04]} exd5 {[%emt 0:00:05]} 5. Nf3 {[%emt 0:00:03]} h6 {[%emt 0:00:13]} 6. Qb3 {[%emt 0:00:15] D31: Queen's Gambit Declined: Semi-Slav without ...Nf6 (+ Marshall Gambit and Noteboom) and Exchange Variation lines without ...Nf6.} Nf6 {[%emt 0:00:13]} 7. e4 {[%emt 0:00:26]} Nxe4 {[%emt 0:00:37]} 8. Nxe4 {[%emt 0:00:03] White is slightly better.} dxe4 {[%emt 0:00:06]} 9. Ne5 {[%emt 0:00:03][%csl Ge5][%cal Rb3f7] [#]} Qe7 {[%emt 0:00:08]} (9... Qxd4 $2 10. Qxf7+ Kd8 {[#]} 11. Bg5+ $1 {[%mdl 512]} hxg5 12. Rd1 Bb4+ 13. Ke2 Qxd1+ 14. Kxd1 $18) 10. Bc4 {[%emt 0:00:17]} Qb4+ {[%emt 0:05:32]} 11. Bd2 {[%emt 0:00:04]} Qxb3 {[%emt 0:00:04]} 12. Bxb3 {[%emt 0:00:02]} Be6 {[%emt 0:08:20]} 13. d5 {[%emt 0:00:07]} Nd7 {[%emt 0:07:52]} 14. dxe6 {[%emt 0:01:45]} Nxe5 {[%emt 0:00:11]} 15. exf7+ {[%emt 0:00:05]} Nxf7 {[%emt 0:00:30] [#]} 16. Rc1 $146 {[%emt 0:00:58][%mdl 2048] White has the initiative.} ({Predecessor:} 16. Bc3 Nd6 17. O-O-O O-O-O 18. Rhe1 Re8 19. a4 h5 20. Re2 Rh6 21. Rde1 Be7 22. g3 {½-½ (50) Urkedal,F (2522)-Gharibyan,M (2318) Kragero 2019}) 16... Bd6 {[%emt 0:01:41]} 17. O-O {[%emt 0:00:27]} O-O {[%emt 0:06:12]} 18. Rfe1 {[%emt 0:15:08]} Rae8 {[%emt 0:04:49]} 19. Rc4 {[%emt 0:21:49]} e3 {[%emt 0:07:37]} 20. Rxe3 {[%emt 0:03:32]} Rxe3 {[%emt 0:00:13]} 21. Bxe3 {[%emt 0:00:33]} Kh8 {[%emt 0:00:40]} 22. f4 {[%emt 0:03:39]} Re8 {[%emt 0:06:16]} 23. Kf2 {[%emt 0:00:05]} Nd8 {[%emt 0:02:10]} 24. Kf3 {[%emt 0:02:49]} Nc6 {[%emt 0:02:00]} 25. Rc1 {[%emt 0:12:46]} Rf8 {[%emt 0:01:49]} 26. g3 {[%emt 0:02:05]} g5 {[%emt 0:16:41]} 27. Bd5 {[%emt 0:04:20]} gxf4 {[%emt 0:08:51]} 28. gxf4 {[%emt 0:02:13]} Ne5+ {[%emt 0:01:41]} 29. Ke2 {[%emt 0:09:31]} Ng6 {[%emt 0:01:02]} 30. Bxb7 {[%emt 0:01:58]} Re8 {[%emt 0:01:10][%cal Oe8e3]} 31. Rc3 {[%emt 0:03:52]} Nxf4+ {[%emt 0:01:13]} 32. Kd1 {[%emt 0:04:43]} a5 {[%emt 0:06:15]} 33. Bd4+ {[%emt 0:00:13] A strong pair of Bishops.} Kg8 {[%emt 0:02:13]} 34. Rf3 {[%emt 0:00:57]} Ne6 $2 {[%emt 0:01:01][%mdl 8192]} (34... Rd8 $16 35. Kc2 Re8) 35. Bc3 $2 {[%emt 0:01:12]} (35. Bd5 $18) 35... Ng5 {[%emt 0:00:28]} 36. Rf6 {[%emt 0:01:03]} Kh7 {[%emt 0:02:08]} (36... Ne4 $16) 37. h4 {[%emt 0:02:57]} ({Don't play} 37. Bxa5 Bxh2 38. Bc6 Rd8+ 39. Kc1 Be5 $16) ({White should try} 37. Bc6 $18 Re3 38. Bxa5) 37... Ne4 $14 {[%emt 0:00:32]} 38. Rf7+ {[%emt 0:00:18]} (38. Bxe4+ $5 Rxe4 39. h5 $14 (39. Bxa5 Rxh4 40. Bxc7 Bxc7 $11)) 38... Kg8 $1 {[%emt 0:01:50] The position is equal.} 39. Rg7+ {[%emt 0:01:57]} Kf8 $1 {[%emt 0:01:02]} 40. Rg6 {[%emt 0:01:22] Black must now prevent Bg7+.} Nxc3+ {[%emt 0:01:50]} 41. bxc3 {[%emt 0:30:02]} Re3 {[%emt 0:30:46]} 42. Rxh6 {[%emt 0:00:00]} Rxc3 {[%emt 0:00:00]} 43. Rf6+ {[%emt 0:00:00]} Kg7 {[%emt 0:00:00]} 44. Rf3 {[%emt 0:00:00]} Rxf3 {[%emt 0:00:00] Weighted Error Value: White=0.28 (precise) /Black=0.26 (precise)} 1/2-1/2

[Event "Dutch Open 2022"]
[Site "Dieren"]
[Date "2022.08.03"]
[Round "8.6"]
[White "Ypma, Peter"]
[Black "Bus, Tom"]
[Result "1-0"]
[ECO "A36"]
[WhiteElo "2346"]
[BlackElo "2102"]
[Annotator "TA"]
[PlyCount "133"]
[EventDate "2022.07.14"]
[EventType "swiss"]
[EventCountry "NED"]
[SourceTitle "playchess.com"]
[Source "ChessBase"]
[SourceQuality "1"]
[TimeControl "40/5400+30:1800+30"]

{[%evp 16,133,0,0,0,4,6,6,13,7,46,44,54,49,70,66,71,73,92,60,101,60,100,93,96,103,96,104,100,100,104,112,108,58,68,66,100,100,112,117,407,219,325,316,317,294,299,299,432,410,381,30,24,29,20,26,20,9,29,27,27,42,36,32,115,122,243,217,268,269,289,283,330,210,208,193,186,158,139,113,114,64,114,117,118,120,135,135,237,199,207,191,575,584,561,522,715,667,644,626,593,591,802,793,744,737,803,802,29979,587,29980,29981,29981,29980,29980,29981,29980,29980,29986,846]} 1. e4 {[%emt 0:00:10]} c5 {[%emt 0:00:23]} 2. c4 {[%emt 0:00:09]} Nc6 {[%emt 0:00:58]} 3. Nc3 {[%emt 0:00:17]} d6 {[%emt 0:03:02]} 4. g3 {[%emt 0:00:20]} g6 {[%emt 0:00:27]} 5. Bg2 {[%emt 0:00:18]} Bg7 {[%emt 0:00:15]} 6. Nge2 {[%emt 0:00:15]} Rb8 {[%emt 0:03:57]} 7. O-O {[%emt 0:01:12]} Nf6 {[%emt 0:01:57][%cal Bg8f6,Bf6e8,Be8c7,Bc7e6,Be6c5][%mdl 32]} 8. d3 {[%emt 0:03:52]} O-O {[%emt 0:00:43]} 9. h3 {[%emt 0:00:11]} Ne8 {[%emt 0:06:08] A36: Symmetrical English vs ...g6: 4 Bg2 Bg7.} 10. Be3 {[%emt 0:03:24]} Nc7 {[%emt 0:02:19]} 11. d4 {[%emt 0:01:27]} cxd4 {[%emt 0:01:20] The position is equal.} (11... Bxd4 {is interesting.} 12. Nxd4 cxd4 13. Bxd4 b5) 12. Nxd4 {[%emt 0:00:07]} Ne6 {[%emt 0:00:42][%cal Rg7d4]} 13. Nde2 {[%emt 0:04:31]} Nc5 {[%emt 0:04:56] [#]} 14. Rc1 $146 {[%emt 0:01:09]} ({Predecessor:} 14. b3 a6 15. f4 Qa5 16. Bd2 Qa3 17. Bc1 Qa5 18. Bd2 b5 19. e5 b4 20. Bxc6 bxc3 21. Nxc3 Nxb3 22. axb3 {0-1 (40) Martens,M (2417)-Klein,D (2511) Netherlands 2016}) 14... Be6 {[%emt 0:03:29]} 15. b3 {[%emt 0:00:14]} a5 {[%emt 0:00:39]} 16. Kh2 {[%emt 0:02:53]} Qd7 {[%emt 0:10:36]} 17. Qd2 {[%emt 0:04:46]} Rfc8 {[%emt 0:01:20][%cal Oa5a4]} 18. Rcd1 {[%emt 0:00:51]} Qd8 {[%emt 0:00:41]} 19. f4 {[%emt 0:02:25]} b6 {[%emt 0:03:38][%cal Oa5a4]} 20. Nd4 {[%emt 0:12:13]} Nxd4 {[%emt 0:08:08]} 21. Bxd4 {[%emt 0:00:23]} Bxd4 {[%emt 0:00:21]} 22. Qxd4 {[%emt 0:00:07]} f6 {[%emt 0:08:57]} 23. Qe3 {[%emt 0:03:22]} Qf8 {[%emt 0:03:25]} 24. Nb5 {[%emt 0:05:51]} (24. e5 $16) 24... Qh6 {[%emt 0:02:22]} 25. Rfe1 {[%emt 0:08:29]} Nd7 {[%emt 0:06:49]} 26. Nd4 {[%emt 0:01:22]} Bg4 {[%emt 0:06:12]} 27. Rd2 {[%emt 0:01:48]} Rc5 $2 {[%emt 0:00:50][%mdl 8192]} (27... Nc5 $16) 28. e5 {[%emt 0:12:20]} (28. Kg1 $142) 28... fxe5 {[%emt 0:01:37]} (28... dxe5 $142 29. Nc6 Re8) 29. Nc6 $18 {[%emt 0:00:11]} Rxc6 {[%emt 0:07:28]} 30. Bxc6 {[%emt 0:00:59]} Qxh3+ {[%emt 0:01:36]} 31. Kg1 {[%emt 0:00:05]} exf4 {[%emt 0:00:33]} (31... Qh5 {keeps fighting.} 32. Bxd7 Bxd7) 32. Bd5+ {[%emt 0:08:05]} Kh8 {[%emt 0:02:14]} 33. Qc3+ {[%emt 0:01:34]} (33. Qxf4 $18 e5 34. Qe3) 33... e5 $11 {[%emt 0:00:19] Threatens to win with ...f3.} 34. Bg2 {[%emt 0:00:10][%mdl 64] [#] Inhibits f3. Discovered Attack} ({Much worse is} 34. Rh2 Qxg3+ 35. Qxg3 fxg3 $15) 34... Qxg3 {[%emt 0:00:28]} 35. Qxg3 {[%emt 0:00:07] Dancing on a razor blade.} fxg3 {[%emt 0:00:08]} 36. Re3 {[%emt 0:00:55]} h5 {[%emt 0:04:03]} 37. Rxg3 {[%emt 0:00:07]} Kg7 {[%emt 0:00:33]} 38. Rxd6 {[%emt 0:00:08][%cal Og3g4]} Nf6 {[%emt 0:00:23]} 39. Rc3 {[%emt 0:03:56][%mdl 1024] c5 is the strong threat. White has compensation.} Nd7 {[%emt 0:05:05]} (39... e4 $14) 40. Re3 $16 {[%emt 0:00:37] Hoping for Bc6. White is more active.} Kf7 {[%emt 0:00:33]} (40... Rf8 $16) 41. Bd5+ $18 {[%emt 0:35:13]} Kg7 {[%emt 0:04:24]} 42. Bc6 {[%emt 0:00:00]} Nf6 {[%emt 0:01:11][%cal Oe5e4]} 43. Rxe5 {[%emt 0:00:00]} Rf8 {[%emt 0:00:24]} 44. Bd5 {[%emt 0:00:00] aiming for Re7+.} Nxd5 {[%emt 0:03:21]} 45. Rexd5 {[%emt 0:00:00][%mdl 4096] Endgame KRR-KRB} ({But not} 45. cxd5 Rf3 $16) 45... Re8 {[%emt 0:01:34]} 46. Rd2 {[%emt 0:00:00]} Rb8 {[%emt 0:01:18]} 47. a4 {[%emt 0:00:00][%cal Ob3b4]} Bf5 {[%emt 0:00:21]} 48. Rc6 {[%emt 0:00:00]} (48. R2d5 $16) 48... h4 {[%emt 0:01:28]} ({Better is} 48... Kh6 $1 $14) 49. Rh2 {[%emt 0:00:00]} h3 {[%emt 0:00:13]} 50. Rf2 {[%emt 0:00:00]} Kf7 {[%emt 0:02:51]} 51. Kh2 {[%emt 0:00:00]} Ke7 {[%emt 0:00:05]} (51... Rb7 $16 52. Rb2 Be4) 52. Rd2 {[%emt 0:00:00] Black must now prevent Rdd6.} Kf7 {[%emt 0:00:52]} 53. Rdd6 {[%emt 0:00:00]} Re8 $2 {[%emt 0:02:09] [#]} (53... Kg7 {is a better chance.} 54. Rxb6 Re8) 54. Rc7+ $1 {[%emt 0:00:00]} Kg8 {[%emt 0:00:40]} 55. Rxb6 {[%emt 0:00:00]} Re2+ {[%emt 0:00:20]} 56. Kg3 {[%emt 0:00:00] White wants to mate with Rb8+.} Re3+ {[%emt 0:00:06]} 57. Kf2 {[%emt 0:02:21] White threatens Rb8+ and mate.} Re8 {[%emt 0:00:13] Against Rb8} 58. Rbb7 {[%emt 0:00:12]} g5 {[%emt 0:08:02]} 59. Rg7+ {[%emt 0:01:06]} Kh8 {[%emt 0:00:37]} 60. Rxg5 {[%emt 0:00:23]} Be4 {[%emt 0:01:50]} 61. Rb6 {[%emt 0:02:10] Intending Rh6+ and mate.} h2 {[%emt 0:00:11]} 62. Rh6+ {[%emt 0:00:21]} Bh7 {[%emt 0:00:07]} 63. Rgh5 {[%emt 0:00:48] White mates.} Rf8+ {[%emt 0:01:23]} 64. Kg2 {[%emt 0:00:38]} h1=B+ {[%emt 0:01:01]} 65. Rxh1 {[%emt 0:00:32]} Rg8+ {[%emt 0:00:32]} 66. Kf2 {[%emt 0:00:18][%csl Gh1][%cal Rh6h7]} Rg6 {[%emt 0:00:27]} 67. Rxh7+ {[%emt 0:00:30] Weighted Error Value: White=0.26 (precise) /Black=0.40} 1-0

[Event "Dutch Open 2022"]
[Site "Dieren"]
[Date "2022.08.03"]
[Round "8.7"]
[White "Manukonda Arun"]
[Black "Elgersma, Onno"]
[Result "0-1"]
[ECO "E04"]
[WhiteElo "2021"]
[BlackElo "2316"]
[Annotator "TA"]
[PlyCount "58"]
[EventDate "2022.07.14"]
[EventType "swiss"]
[EventCountry "NED"]
[SourceTitle "playchess.com"]
[Source "ChessBase"]
[SourceQuality "1"]
[TimeControl "40/5400+30:1800+30"]

{[%evp 16,58,-10,-29,0,-30,-39,-42,-31,-89,-108,-106,-81,-95,-99,-79,-92,-293,-158,-359,-207,-197,-161,-164,-133,-179,-86,-97,-32,-42,-12,-268,-273,-381,-370,-912,-909,-898,-811,-1144,-902,-1408,-1384,-1558,-1164]} 1. d4 {[%emt 0:06:04]} Nf6 {[%emt 0:00:14]} 2. c4 {[%emt 0:00:01]} e6 {[%emt 0:00:09]} 3. Nf3 {[%emt 0:00:05]} Bb4+ {[%emt 0:01:12]} 4. Bd2 {[%emt 0:00:24]} a5 {[%emt 0:00:05]} 5. g3 {[%emt 0:00:48]} d5 {[%emt 0:00:17]} 6. Bg2 {[%emt 0:01:05]} O-O {[%emt 0:00:06]} 7. O-O {[%emt 0:03:50]} dxc4 {[%emt 0:00:08]} 8. Bxb4 {[%emt 0:07:42]} axb4 {[%emt 0:00:21]} 9. Ne5 $1 {[%emt 0:00:05]} Nc6 {[%emt 0:00:05] E04: Open Catalan: 5 Nf3.} 10. Nxc6 {[%emt 0:07:09]} bxc6 {[%emt 0:00:12]} 11. e3 {[%emt 0:05:00] [#]} e5 $146 {[%emt 0:02:59] Black is slightly better.} ({Predecessor:} 11... Nd5 12. Qc1 Ba6 13. Rd1 Bb5 14. Bf1 Nb6 15. Nd2 Qd5 16. Bg2 Qd6 17. Bf1 Qd5 {½-½ (29) De Ruiter,D (2268)-Gijswijt,B (2387) Haarlem 2019}) 12. Qc1 {[%emt 0:09:21]} (12. dxe5 $15 Nd5 13. Qc2) 12... exd4 $17 {[%emt 0:06:46]} 13. Rd1 {[%emt 0:01:23]} Be6 {[%emt 0:01:07][%cal Oc6c5] [#] aiming for ...c5!} (13... Ng4 {feels hotter.} 14. Rxd4 Qf6 15. f3 Ne5) 14. Bxc6 {[%emt 0:01:17]} Ra5 $36 {[%emt 0:00:13][%mdl 2048] Threatens to win with ...Qd6. Black is really pushing.} 15. Rxd4 {[%emt 0:00:29]} Qe7 {[%emt 0:00:10]} 16. Qd2 $2 {[%emt 0:07:21]} (16. Bf3 $17 {might work better.}) 16... Rb8 {[%emt 0:04:22]} (16... Ra6 $19 17. Bb5 Rb6 18. Bxc4 c5 19. Bxe6 cxd4) 17. a3 $2 {[%emt 0:04:47]} (17. Qe2 $17) 17... g6 {[%emt 0:04:40]} (17... Ra6 $142 18. Bg2 c5) 18. Qe1 {[%emt 0:05:28]} Rb6 {[%emt 0:03:01]} 19. Bg2 {[%emt 0:01:19]} c5 {[%emt 0:00:54]} 20. Rd1 {[%emt 0:00:34]} (20. Rd2 $17 {keeps fighting.}) 20... c3 {[%emt 0:20:40]} (20... Ra4 $19 {[%cal Oc4c3] is more deadly. ...c3! is the strong threat.} 21. Rd2 c3 22. bxc3 b3) 21. bxc3 {[%emt 0:02:26]} b3 {[%emt 0:00:22] Black is more active.} ({Better is} 21... Rb8 $17) 22. c4 $1 $15 {[%emt 0:02:48]} Ra4 {[%emt 0:08:33][%cal Ba5a4,Ba4c4,Bc4c2,Bc2d2,Bd2d3][%mdl 32] White must now prevent ...b2.} (22... Raa6 $5 {[%cal Rb3b2]} 23. Qc3 Bf5 $15) 23. Nd2 $2 {[%emt 0:03:57][%mdl 8192]} (23. Nc3 $11 {and White is okay.} Raa6 24. Qe2) 23... b2 $19 {[%emt 0:00:23]} 24. Ra2 {[%emt 0:01:43]} Rxc4 {[%emt 0:04:54] And now ...Rc2 would win.} 25. a4 $2 {[%emt 0:04:25]} (25. Rxb2 Rxb2 26. Nxc4 Bxc4 27. Qc3) 25... Rc2 {[%emt 0:01:02] Black is clearly winning.} 26. a5 {[%emt 0:00:48]} Rb8 {[%emt 0:00:10]} ({And not} 26... Bxa2 27. axb6 Bd5 28. e4 $17) 27. Ra4 {[%emt 0:09:46] [#]} Rxd2 $1 {[%emt 0:00:25][%mdl 512]} 28. Rb1 {[%emt 0:00:19]} (28. Qxd2 b1=Q) 28... Qd7 {[%emt 0:01:12]} 29. Ra3 {[%emt 0:01:08]} Rd3 {[%emt 0:00:17] Weighted Error Value: White=1.05/Black=0.43} 0-1